[Event "*** Titled Tuesday Blitz"]
[Site "Chess.com"]
[Date "2020.12.01"]
[Round "4"]
[White "RobPeresian"]
[Black "Nils_03"]
[Result "1-0"]
[WhiteElo "2439"]
[BlackElo "2264"]
[TimeControl "180+1"]
[EndTime "10:40:08 PST"]
[Termination "RobPeresian won by resignation"]

1. Nf3 {[%clk 0:03:00.9]} 1... d5 {[%clk 0:02:59.2]} 2. d4 {[%clk 0:03:00.5]}
2... Nf6 {[%clk 0:02:58.6]} 3. c4 {[%clk 0:03:00.7]} 3... e6 {[%clk 0:02:55.9]}
4. Nc3 {[%clk 0:03:00.7]} 4... c6 {[%clk 0:02:54.3]} 5. Bg5 {[%clk 0:03:00.6]}
5... Be7 {[%clk 0:02:53.3]} 6. e3 {[%clk 0:03:00.8]} 6... Qa5 {[%clk 0:02:52.8]}
7. Nd2 {[%clk 0:02:58.7]} 7... Nbd7 {[%clk 0:02:50.2]} 8. Qc2 {[%clk 0:02:55.8]}
8... h6 {[%clk 0:02:47.6]} 9. Bh4 {[%clk 0:02:55.1]} 9... O-O {[%clk 0:02:46.4]}
10. Bd3 {[%clk 0:02:54.1]} 10... dxc4 {[%clk 0:02:30.6]} 11. Nxc4 {[%clk
0:02:53.7]} 11... Qh5 {[%clk 0:02:30.4]} 12. Bg3 {[%clk 0:02:50.5]} 12... Nd5
{[%clk 0:02:21.2]} 13. Be2 {[%clk 0:02:47.7]} 13... Qg6 {[%clk 0:02:17.7]} 14.
Qxg6 {[%clk 0:02:47.5]} 14... fxg6 {[%clk 0:02:18.6]} 15. O-O {[%clk 0:02:42.8]}
15... N7b6 {[%clk 0:02:16.1]} 16. Ne4 {[%clk 0:02:36.3]} 16... Nxc4 {[%clk
0:02:09.6]} 17. Bxc4 {[%clk 0:02:35.8]} 17... Bd7 {[%clk 0:02:06]} 18. a3 {[%clk
0:02:35.4]} 18... g5 {[%clk 0:02:01.4]} 19. Rfd1 {[%clk 0:02:28.5]} 19... Rad8
{[%clk 0:01:58.1]} 20. Rac1 {[%clk 0:02:26.3]} 20... Bc8 {[%clk 0:01:57.1]} 21.
h3 {[%clk 0:02:22.9]} 21... Nf6 {[%clk 0:01:49.5]} 22. Bd3 {[%clk 0:02:14.8]}
22... Nxe4 {[%clk 0:01:42.7]} 23. Bxe4 {[%clk 0:02:15]} 23... Bd6 {[%clk
0:01:43.2]} 24. Bxd6 {[%clk 0:02:11.7]} 24... Rxd6 {[%clk 0:01:44.1]} 25. b4
{[%clk 0:02:06.1]} 25... Rfd8 {[%clk 0:01:40]} 26. Rc5 {[%clk 0:02:03.6]} 26...
Bd7 {[%clk 0:01:32.7]} 27. Rdc1 {[%clk 0:02:02.5]} 27... Be8 {[%clk 0:01:31.6]}
28. Kf1 {[%clk 0:02:01.6]} 28... Kf8 {[%clk 0:01:25.8]} 29. Ra5 {[%clk
0:01:59.6]} 29... a6 {[%clk 0:01:21.5]} 30. Ke2 {[%clk 0:01:59.3]} 30... Ke7
{[%clk 0:01:21.4]} 31. a4 {[%clk 0:01:50.5]} 31... Kf6 {[%clk 0:01:20.7]} 32.
Re5 {[%clk 0:01:43.6]} 32... Bg6 {[%clk 0:01:17.5]} 33. Bxg6 {[%clk 0:01:37.4]}
33... Kxg6 {[%clk 0:01:16.7]} 34. b5 {[%clk 0:01:33.3]} 34... axb5 {[%clk
0:01:05]} 35. axb5 {[%clk 0:01:34.2]} 35... Kf6 {[%clk 0:00:56.8]} 36. Rec5
{[%clk 0:01:26.5]} 36... Ra8 {[%clk 0:00:53.1]} 37. bxc6 {[%clk 0:01:24.9]}
37... Ra2+ {[%clk 0:00:50.6]} 38. Kf3 {[%clk 0:01:24.7]} 38... Rxc6 {[%clk
0:00:50.3]} 39. Rxc6 {[%clk 0:01:24.8]} 39... bxc6 {[%clk 0:00:51.2]} 40. Rxc6
{[%clk 0:01:25]} 40... Kf7 {[%clk 0:00:49.2]} 41. Rb6 {[%clk 0:01:14]} 41... Rc2
{[%clk 0:00:47.7]} 42. Rb7+ {[%clk 0:01:06.8]} 42... Kf6 {[%clk 0:00:47.5]} 43.
Rb5 {[%clk 0:01:06]} 43... Ra2 {[%clk 0:00:46.5]} 44. g4 {[%clk 0:01:03.4]}
44... Rc2 {[%clk 0:00:44.9]} 45. Re5 {[%clk 0:01:01.2]} 45... Ra2 {[%clk
0:00:44.4]} 46. Kg3 {[%clk 0:01:01.2]} 46... Rb2 {[%clk 0:00:44]} 47. f3 {[%clk
0:01:01.4]} 47... Ra2 {[%clk 0:00:43]} 48. h4 {[%clk 0:01:01.7]} 48... gxh4+
{[%clk 0:00:42.6]} 49. Kxh4 {[%clk 0:01:02.6]} 49... Re2 {[%clk 0:00:39.2]} 50.
f4 {[%clk 0:00:58.8]} 50... g5+ {[%clk 0:00:31.2]} 51. Kg3 {[%clk 0:00:52.7]}
51... gxf4+ {[%clk 0:00:27.6]} 52. exf4 {[%clk 0:00:53.6]} 52... Ra2 {[%clk
0:00:23.6]} 53. Rh5 {[%clk 0:00:47.6]} 53... Kg6 {[%clk 0:00:22.5]} 54. Kf3
{[%clk 0:00:47.8]} 54... Ra1 {[%clk 0:00:20.9]} 55. Re5 {[%clk 0:00:46.1]} 55...
Rf1+ {[%clk 0:00:20.1]} 56. Kg3 {[%clk 0:00:38.5]} 56... Kf6 {[%clk 0:00:19.9]}
57. Rh5 {[%clk 0:00:35.9]} 57... Kg6 {[%clk 0:00:19.6]} 58. d5 {[%clk
0:00:35.1]} 58... exd5 {[%clk 0:00:19.6]} 59. Rxd5 {[%clk 0:00:36]} 59... Ra1
{[%clk 0:00:19.2]} 60. Rd6+ {[%clk 0:00:35.5]} 60... Kg7 {[%clk 0:00:19.6]} 61.
f5 {[%clk 0:00:34.8]} 61... Rb1 {[%clk 0:00:17.5]} 62. Rd7+ {[%clk 0:00:33.3]}
62... Kf6 {[%clk 0:00:15.3]} 63. Rh7 {[%clk 0:00:32]} 63... Rg1+ {[%clk
0:00:12.1]} 64. Kh3 {[%clk 0:00:30.7]} 64... Kg5 {[%clk 0:00:10.3]} 65. Rg7+
{[%clk 0:00:29.8]} 65... Kf4 {[%clk 0:00:10.6]} 66. f6 {[%clk 0:00:27.7]} 66...
Ke5 {[%clk 0:00:10.3]} 67. f7 {[%clk 0:00:23.3]} 67... Rf1 {[%clk 0:00:09.2]}
68. Kh4 {[%clk 0:00:19]} 68... Ke6 {[%clk 0:00:09]} 69. Kh5 {[%clk 0:00:19]}
69... Rh1+ {[%clk 0:00:05.8]} 70. Kg6 {[%clk 0:00:19]} 70... Rf1 {[%clk
0:00:05.3]} 71. Kxh6 {[%clk 0:00:17.7]} 71... Rf6+ {[%clk 0:00:05.3]} 72. Rg6
{[%clk 0:00:17.1]} 72... Kxf7 {[%clk 0:00:05.3]} 73. Rxf6+ {[%clk 0:00:17.1]}
73... Kxf6 {[%clk 0:00:06.2]} 74. g5+ {[%clk 0:00:17.9]} 74... Kf7 {[%clk
0:00:07.1]} 75. Kh7 {[%clk 0:00:18]} 1-0

[Event "*** Titled Tuesday Blitz"]
[Site "Chess.com"]
[Date "2020.12.01"]
[Round "4"]
[White "alexsuper1987"]
[Black "amatatanav"]
[Result "1/2-1/2"]
[WhiteElo "2262"]
[BlackElo "2403"]
[TimeControl "180+1"]
[EndTime "10:40:16 PST"]
[Termination "Game drawn - insufficient material"]

1. d4 {[%clk 0:03:00.9]} 1... Nf6 {[%clk 0:02:59.7]} 2. Bf4 {[%clk 0:03:00.4]}
2... e6 {[%clk 0:02:56.3]} 3. Nf3 {[%clk 0:02:57.5]} 3... b6 {[%clk 0:02:55.7]}
4. e3 {[%clk 0:02:57]} 4... Bb7 {[%clk 0:02:56]} 5. Nbd2 {[%clk 0:02:57.1]} 5...
Be7 {[%clk 0:02:55.8]} 6. Bd3 {[%clk 0:02:57.2]} 6... Nh5 {[%clk 0:02:54.8]} 7.
Bg3 {[%clk 0:02:55.4]} 7... O-O {[%clk 0:02:53.5]} 8. Qe2 {[%clk 0:02:50]} 8...
d6 {[%clk 0:02:52.6]} 9. c3 {[%clk 0:02:49.5]} 9... c5 {[%clk 0:02:51]} 10. e4
{[%clk 0:02:45.7]} 10... cxd4 {[%clk 0:02:28.6]} 11. cxd4 {[%clk 0:02:44.7]}
11... a5 {[%clk 0:02:13]} 12. e5 {[%clk 0:02:44.4]} 12... g6 {[%clk 0:01:27.5]}
13. exd6 {[%clk 0:02:26.9]} 13... Bxd6 {[%clk 0:01:28.4]} 14. Bxd6 {[%clk
0:02:26.9]} 14... Qxd6 {[%clk 0:01:29]} 15. Ne4 {[%clk 0:02:19.9]} 15... Qb4+
{[%clk 0:01:20.9]} 16. Qd2 {[%clk 0:02:20]} 16... Nf4 {[%clk 0:01:14.4]} 17.
O-O-O {[%clk 0:01:47]} 17... Rc8+ {[%clk 0:00:47.3]} 18. Kb1 {[%clk 0:01:45.1]}
18... Qxd2 {[%clk 0:00:40.9]} 19. Rxd2 {[%clk 0:01:43.6]} 19... Nxd3 {[%clk
0:00:32.3]} 20. Nd6 {[%clk 0:01:41.7]} 20... Bxf3 {[%clk 0:00:22.4]} 21. Nxc8
{[%clk 0:01:40]} 21... Bxg2 {[%clk 0:00:19.1]} 22. Rg1 {[%clk 0:01:37.7]} 22...
Be4 {[%clk 0:00:18.9]} 23. Nd6 {[%clk 0:01:32.5]} 23... f5 {[%clk 0:00:09.8]}
24. f3 {[%clk 0:01:31.2]} 24... Nc5+ {[%clk 0:00:06.1]} 25. fxe4 {[%clk
0:01:29.3]} 25... Nxe4 {[%clk 0:00:06.5]} 26. Nxe4 {[%clk 0:01:29.4]} 26... fxe4
{[%clk 0:00:07.4]} 27. Re1 {[%clk 0:01:16.4]} 27... Nc6 {[%clk 0:00:07.7]} 28.
Rxe4 {[%clk 0:01:16.7]} 28... Kf7 {[%clk 0:00:08.3]} 29. d5 {[%clk 0:01:15.8]}
29... exd5 {[%clk 0:00:06.8]} 30. Rxd5 {[%clk 0:01:16.7]} 30... Rc8 {[%clk
0:00:06.7]} 31. a3 {[%clk 0:01:16.1]} 31... Rc7 {[%clk 0:00:06.7]} 32. Rb5
{[%clk 0:01:15.7]} 32... Rb7 {[%clk 0:00:05.9]} 33. h4 {[%clk 0:01:14.3]} 33...
Na7 {[%clk 0:00:05.8]} 34. Rf4+ {[%clk 0:01:12]} 34... Kg7 {[%clk 0:00:05.3]}
35. Rd5 {[%clk 0:01:09.3]} 35... Nc6 {[%clk 0:00:04.7]} 36. h5 {[%clk
0:01:09.1]} 36... gxh5 {[%clk 0:00:03.8]} 37. Rxh5 {[%clk 0:01:09.8]} 37... h6
{[%clk 0:00:03.3]} 38. Rc4 {[%clk 0:01:07.9]} 38... Ne7 {[%clk 0:00:02.8]} 39.
Re4 {[%clk 0:01:03.2]} 39... Ng8 {[%clk 0:00:03]} 40. Re6 {[%clk 0:01:01.2]}
40... Nf6 {[%clk 0:00:03.1]} 41. Rb5 {[%clk 0:01:01.2]} 41... h5 {[%clk
0:00:02.7]} 42. Rbxb6 {[%clk 0:01:00.4]} 42... Rxb6 {[%clk 0:00:03.4]} 43. Rxb6
{[%clk 0:01:01.2]} 43... h4 {[%clk 0:00:03.9]} 44. Rb3 {[%clk 0:01:01.4]} 44...
Kg6 {[%clk 0:00:04.1]} 45. Rf3 {[%clk 0:00:58.8]} 45... Kg5 {[%clk 0:00:04.2]}
46. b4 {[%clk 0:00:59.3]} 46... axb4 {[%clk 0:00:04.2]} 47. axb4 {[%clk
0:01:00.2]} 47... Ne4 {[%clk 0:00:04.5]} 48. Kc2 {[%clk 0:00:55.5]} 48... Kg4
{[%clk 0:00:04.4]} 49. Rf8 {[%clk 0:00:55]} 49... Nd6 {[%clk 0:00:04.5]} 50. Kd3
{[%clk 0:00:47.8]} 50... h3 {[%clk 0:00:04.2]} 51. Ke3 {[%clk 0:00:36.4]} 51...
Nf5+ {[%clk 0:00:02.6]} 52. Kf2 {[%clk 0:00:31.5]} 52... Nd6 {[%clk 0:00:02.8]}
53. Rg8+ {[%clk 0:00:29.2]} 53... Kf4 {[%clk 0:00:02.9]} 54. Kg1 {[%clk
0:00:24.5]} 54... Ke4 {[%clk 0:00:01.5]} 55. Kh2 {[%clk 0:00:23.9]} 55... Kd4
{[%clk 0:00:01.5]} 56. Kxh3 {[%clk 0:00:22.7]} 56... Kc4 {[%clk 0:00:01.8]} 57.
Rb8 {[%clk 0:00:20.5]} 57... Nb5 {[%clk 0:00:01.8]} 58. Kg3 {[%clk 0:00:19.8]}
58... Kxb4 {[%clk 0:00:02.7]} 59. Kf4 {[%clk 0:00:20.1]} 59... Kc4 {[%clk
0:00:03.6]} 60. Rc8+ {[%clk 0:00:19.7]} 60... Kd5 {[%clk 0:00:03.6]} 61. Rd8+
{[%clk 0:00:20]} 61... Nd6 {[%clk 0:00:04.2]} 62. Rd7 {[%clk 0:00:19.8]} 62...
Kc6 {[%clk 0:00:04.4]} 63. Rh7 {[%clk 0:00:19.8]} 63... Kd5 {[%clk 0:00:05.3]}
64. Rh5+ {[%clk 0:00:19.8]} 64... Kd4 {[%clk 0:00:05.6]} 65. Rh1 {[%clk
0:00:18.2]} 65... Kd5 {[%clk 0:00:06.5]} 66. Rd1+ {[%clk 0:00:18.4]} 66... Ke6
{[%clk 0:00:06.9]} 67. Ra1 {[%clk 0:00:16.6]} 67... Kd5 {[%clk 0:00:07.8]} 68.
Ra5+ {[%clk 0:00:16.6]} 68... Kd4 {[%clk 0:00:07.7]} 69. Ra8 {[%clk 0:00:15.1]}
69... Kd5 {[%clk 0:00:08.6]} 70. Rd8 {[%clk 0:00:14.7]} 70... Ke6 {[%clk
0:00:09.1]} 71. Rh8 {[%clk 0:00:13.9]} 71... Kd5 {[%clk 0:00:10]} 72. Ke3 {[%clk
0:00:14.3]} 72... Ke5 {[%clk 0:00:10.2]} 73. Kd3 {[%clk 0:00:14.4]} 73... Kd5
{[%clk 0:00:10.5]} 74. Rh5+ {[%clk 0:00:14.6]} 74... Ke6 {[%clk 0:00:10.9]} 75.
Kd4 {[%clk 0:00:14.9]} 75... Nf5+ {[%clk 0:00:11.3]} 76. Ke4 {[%clk 0:00:14.7]}
76... Nd6+ {[%clk 0:00:11.8]} 77. Kf4 {[%clk 0:00:15.1]} 77... Nc4 {[%clk
0:00:11.5]} 78. Rh6+ {[%clk 0:00:15.3]} 78... Kd5 {[%clk 0:00:12.3]} 79. Rh5+
{[%clk 0:00:15.3]} 79... Kd4 {[%clk 0:00:12.7]} 80. Rh8 {[%clk 0:00:15.1]} 80...
Kd5 {[%clk 0:00:13]} 81. Rd8+ {[%clk 0:00:15.2]} 81... Kc5 {[%clk 0:00:13.5]}
82. Rc8+ {[%clk 0:00:15.3]} 82... Kd5 {[%clk 0:00:13.4]} 83. Rxc4 {[%clk
0:00:15.7]} 83... Kxc4 {[%clk 0:00:13.6]} 1/2-1/2

[Event "*** Titled Tuesday Blitz"]
[Site "Chess.com"]
[Date "2020.12.01"]
[Round "4"]
[White "kuban1991"]
[Black "Ermito2020"]
[Result "1-0"]
[WhiteElo "2821"]
[BlackElo "2604"]
[TimeControl "180+1"]
[EndTime "10:40:17 PST"]
[Termination "kuban1991 won on time"]

1. Nf3 {[%clk 0:02:59.6]} 1... Nf6 {[%clk 0:02:59.3]} 2. g3 {[%clk 0:02:59.4]}
2... g6 {[%clk 0:02:59.3]} 3. Bg2 {[%clk 0:03:00.3]} 3... Bg7 {[%clk 0:02:58.6]}
4. O-O {[%clk 0:03:01.2]} 4... O-O {[%clk 0:02:58.4]} 5. c4 {[%clk 0:03:01.7]}
5... d6 {[%clk 0:02:58.2]} 6. Nc3 {[%clk 0:03:01.6]} 6... e5 {[%clk 0:02:58.2]}
7. d3 {[%clk 0:03:01.6]} 7... Nc6 {[%clk 0:02:57.5]} 8. Rb1 {[%clk 0:03:01.5]}
8... a5 {[%clk 0:02:57.4]} 9. a3 {[%clk 0:03:01.3]} 9... Re8 {[%clk 0:02:57.5]}
10. Bg5 {[%clk 0:03:01.5]} 10... h6 {[%clk 0:02:56.4]} 11. Bxf6 {[%clk
0:03:01.6]} 11... Bxf6 {[%clk 0:02:57]} 12. Nd5 {[%clk 0:02:59.6]} 12... Bg7
{[%clk 0:02:56]} 13. b4 {[%clk 0:02:59.4]} 13... axb4 {[%clk 0:02:55.7]} 14.
axb4 {[%clk 0:03:00.3]} 14... Ne7 {[%clk 0:02:38.4]} 15. Nxe7+ {[%clk
0:02:54.9]} 15... Qxe7 {[%clk 0:02:36.9]} 16. Ne1 {[%clk 0:02:53.5]} 16... c6
{[%clk 0:02:31.7]} 17. b5 {[%clk 0:02:53]} 17... Bd7 {[%clk 0:02:31.4]} 18. Nc2
{[%clk 0:02:53]} 18... f5 {[%clk 0:02:14.9]} 19. Nb4 {[%clk 0:02:52.4]} 19... e4
{[%clk 0:02:14.8]} 20. e3 {[%clk 0:02:41.2]} 20... Ra3 {[%clk 0:01:43.1]} 21.
Rb3 {[%clk 0:02:32.8]} 21... Rxb3 {[%clk 0:01:37.4]} 22. Qxb3 {[%clk 0:02:33.7]}
22... Ra8 {[%clk 0:01:28.4]} 23. dxe4 {[%clk 0:02:25.7]} 23... fxe4 {[%clk
0:01:28.6]} 24. h4 {[%clk 0:02:16.9]} 24... Kh7 {[%clk 0:01:23.4]} 25. Rd1
{[%clk 0:02:15.5]} 25... Bg4 {[%clk 0:01:15.6]} 26. Rb1 {[%clk 0:02:09.3]} 26...
Qe8 {[%clk 0:01:08.2]} 27. bxc6 {[%clk 0:02:05]} 27... bxc6 {[%clk 0:01:08]} 28.
Qc2 {[%clk 0:01:55.4]} 28... Bf5 {[%clk 0:01:03.2]} 29. g4 {[%clk 0:01:50.8]}
29... Bxg4 {[%clk 0:01:01.8]} 30. Bxe4 {[%clk 0:01:48.6]} 30... Rc8 {[%clk
0:00:56.7]} 31. f3 {[%clk 0:01:25.6]} 31... Bh5 {[%clk 0:00:55]} 32. Qd3 {[%clk
0:01:22.2]} 32... Qe7 {[%clk 0:00:53.2]} 33. Nxc6 {[%clk 0:00:43.8]} 33... Qxh4
{[%clk 0:00:51.2]} 34. Qxd6 {[%clk 0:00:43]} 34... Rf8 {[%clk 0:00:23.6]} 35.
Ne7 {[%clk 0:00:30.4]} 35... Qg5+ {[%clk 0:00:20.3]} 36. Kf2 {[%clk 0:00:21.3]}
36... Be5 {[%clk 0:00:19.5]} 37. Qe6 {[%clk 0:00:11.6]} 37... Qg3+ {[%clk
0:00:18.3]} 38. Ke2 {[%clk 0:00:12.1]} 38... Bxf3+ {[%clk 0:00:17.8]} 39. Bxf3
{[%clk 0:00:10.3]} 39... Qxf3+ {[%clk 0:00:17.1]} 40. Kd3 {[%clk 0:00:09.6]}
40... Rd8+ {[%clk 0:00:14.9]} 41. Nd5 {[%clk 0:00:10]} 41... Bg7 {[%clk
0:00:13.4]} 42. Rb6 {[%clk 0:00:09]} 42... Qd1+ {[%clk 0:00:12.7]} 43. Ke4
{[%clk 0:00:06.5]} 43... Qc2+ {[%clk 0:00:12.5]} 44. Kf3 {[%clk 0:00:06.2]}
44... Rf8+ {[%clk 0:00:11.9]} 45. Nf4 {[%clk 0:00:06.5]} 45... g5 {[%clk
0:00:11.3]} 46. Qe4+ {[%clk 0:00:02.7]} 46... Qxe4+ {[%clk 0:00:10.2]} 47. Kxe4
{[%clk 0:00:03.6]} 47... gxf4 {[%clk 0:00:11.1]} 48. exf4 {[%clk 0:00:04.5]}
48... Re8+ {[%clk 0:00:10]} 49. Kd5 {[%clk 0:00:03.2]} 49... Rd8+ {[%clk
0:00:10]} 50. Ke4 {[%clk 0:00:02.2]} 50... Rd4+ {[%clk 0:00:09.5]} 51. Kf3
{[%clk 0:00:02.3]} 51... Rxc4 {[%clk 0:00:10.4]} 52. f5 {[%clk 0:00:02.8]} 52...
Rc1 {[%clk 0:00:08.5]} 53. Re6 {[%clk 0:00:02.9]} 53... Rf1+ {[%clk 0:00:07.5]}
54. Kg4 {[%clk 0:00:03.5]} 54... Kg8 {[%clk 0:00:06.7]} 55. Rg6 {[%clk 0:00:04]}
55... Kf7 {[%clk 0:00:06.2]} 56. Re6 {[%clk 0:00:04.6]} 56... Rg1+ {[%clk
0:00:05.5]} 57. Kf4 {[%clk 0:00:04.6]} 57... Rf1+ {[%clk 0:00:05.7]} 58. Kg4
{[%clk 0:00:04.8]} 58... Bf6 {[%clk 0:00:06.6]} 59. Rc6 {[%clk 0:00:04.8]} 59...
Rg1+ {[%clk 0:00:06]} 60. Kf4 {[%clk 0:00:05]} 60... Bg5+ {[%clk 0:00:04.6]} 61.
Kf3 {[%clk 0:00:04.5]} 61... Rf1+ {[%clk 0:00:04.3]} 62. Ke4 {[%clk 0:00:04.9]}
62... Re1+ {[%clk 0:00:03]} 63. Kf3 {[%clk 0:00:05.1]} 1-0

[Event "*** Titled Tuesday Blitz"]
[Site "Chess.com"]
[Date "2020.12.01"]
[Round "4"]
[White "JustWatch000"]
[Black "ChessQueen"]
[Result "1-0"]
[WhiteElo "2428"]
[BlackElo "2706"]
[TimeControl "180+1"]
[EndTime "10:40:17 PST"]
[Termination "JustWatch000 won by resignation"]

1. e4 {[%clk 0:02:56.3]} 1... c6 {[%clk 0:03:00]} 2. d4 {[%clk 0:02:56.2]} 2...
d5 {[%clk 0:03:00.2]} 3. exd5 {[%clk 0:02:57.1]} 3... cxd5 {[%clk 0:03:00.3]} 4.
c4 {[%clk 0:02:57.7]} 4... Nf6 {[%clk 0:02:59.7]} 5. Nc3 {[%clk 0:02:57.6]} 5...
Nc6 {[%clk 0:03:00.3]} 6. Bg5 {[%clk 0:02:55.1]} 6... Be6 {[%clk 0:02:42.9]} 7.
Be2 {[%clk 0:02:35.8]} 7... g6 {[%clk 0:02:33.9]} 8. Bf3 {[%clk 0:02:03.7]} 8...
Na5 {[%clk 0:01:04]} 9. Bxf6 {[%clk 0:01:30.4]} 9... exf6 {[%clk 0:01:03.4]} 10.
cxd5 {[%clk 0:01:23.6]} 10... Bd7 {[%clk 0:01:00.4]} 11. Nge2 {[%clk 0:00:57]}
11... Nc4 {[%clk 0:00:52.9]} 12. O-O {[%clk 0:00:54.3]} 12... Bg7 {[%clk
0:00:52.5]} 13. Qb3 {[%clk 0:00:44.5]} 13... Nd6 {[%clk 0:00:52.1]} 14. Qa3
{[%clk 0:00:40.9]} 14... Qb6 {[%clk 0:00:33.7]} 15. Qc5 {[%clk 0:00:31.2]} 15...
O-O {[%clk 0:00:27.3]} 16. Nf4 {[%clk 0:00:27.2]} 16... Rfc8 {[%clk 0:00:26]}
17. Qxb6 {[%clk 0:00:27.2]} 17... axb6 {[%clk 0:00:26.9]} 18. Be2 {[%clk
0:00:15.2]} 18... f5 {[%clk 0:00:27.1]} 19. Rfd1 {[%clk 0:00:14.9]} 19... b5
{[%clk 0:00:26]} 20. a3 {[%clk 0:00:14.5]} 20... Nc4 {[%clk 0:00:24.5]} 21. Bxc4
{[%clk 0:00:13.7]} 21... Rxc4 {[%clk 0:00:25.4]} 22. Nfe2 {[%clk 0:00:10.9]}
22... Ra6 {[%clk 0:00:23.1]} 23. Rac1 {[%clk 0:00:08.7]} 23... b4 {[%clk
0:00:22]} 24. axb4 {[%clk 0:00:08.6]} 24... Rxb4 {[%clk 0:00:22.9]} 25. Rd2
{[%clk 0:00:08.9]} 25... Rab6 {[%clk 0:00:20.6]} 26. Rcc2 {[%clk 0:00:08.9]}
26... Bh6 {[%clk 0:00:19]} 27. f4 {[%clk 0:00:09.4]} 27... Bg7 {[%clk
0:00:19.4]} 28. Kf2 {[%clk 0:00:09.4]} 28... Bf6 {[%clk 0:00:19.3]} 29. g3
{[%clk 0:00:09.3]} 29... Kf8 {[%clk 0:00:19.6]} 30. Nc1 {[%clk 0:00:09.5]} 30...
Rc4 {[%clk 0:00:18.7]} 31. N1e2 {[%clk 0:00:09.1]} 31... h5 {[%clk 0:00:16.7]}
32. Ke3 {[%clk 0:00:09.2]} 32... h4 {[%clk 0:00:16.8]} 33. Nc1 {[%clk
0:00:09.6]} 33... Rbb4 {[%clk 0:00:15.7]} 34. N1a2 {[%clk 0:00:08.4]} 34... Rb3
{[%clk 0:00:11.1]} 35. Nc1 {[%clk 0:00:05.9]} 35... Rb6 {[%clk 0:00:08.4]} 36.
b3 {[%clk 0:00:05]} 36... Rcb4 {[%clk 0:00:08.1]} 37. N3e2 {[%clk 0:00:03.2]}
37... hxg3 {[%clk 0:00:05.5]} 38. hxg3 {[%clk 0:00:03.1]} 38... Be7 {[%clk
0:00:05.9]} 39. Rc7 {[%clk 0:00:03.4]} 39... Rd6 {[%clk 0:00:05.4]} 40. Rc3
{[%clk 0:00:03.2]} 40... Rxd5 {[%clk 0:00:05.4]} 41. Rcc2 {[%clk 0:00:04.1]}
41... Rd6 {[%clk 0:00:05.6]} 42. Nd3 {[%clk 0:00:04.6]} 42... Rb5 {[%clk
0:00:05.1]} 43. Ne5 {[%clk 0:00:04.6]} 43... Bc6 {[%clk 0:00:05.6]} 44. Nxc6
{[%clk 0:00:04.8]} 44... bxc6 {[%clk 0:00:06.5]} 45. Nc3 {[%clk 0:00:05.2]}
45... Re6+ {[%clk 0:00:06.6]} 46. Kd3 {[%clk 0:00:05.2]} 46... Rb8 {[%clk
0:00:06.2]} 47. Rb2 {[%clk 0:00:05.4]} 47... Bb4 {[%clk 0:00:06]} 48. Re2 {[%clk
0:00:05.2]} 48... Rd8 {[%clk 0:00:05.8]} 49. Kc4 {[%clk 0:00:04.4]} 49... Bxc3
{[%clk 0:00:05.3]} 50. Kxc3 {[%clk 0:00:04.6]} 50... Red6 {[%clk 0:00:05.3]} 51.
Rbd2 {[%clk 0:00:04.9]} 51... Rb8 {[%clk 0:00:05.5]} 52. Re5 {[%clk 0:00:05]}
52... Rb7 {[%clk 0:00:06]} 53. Rc5 {[%clk 0:00:05.4]} 53... Ke7 {[%clk
0:00:05.4]} 54. Kc4 {[%clk 0:00:05.9]} 54... Kf6 {[%clk 0:00:05.7]} 55. b4
{[%clk 0:00:06.3]} 55... Re7 {[%clk 0:00:05.2]} 56. d5 {[%clk 0:00:05.8]} 56...
Re4+ {[%clk 0:00:05.6]} 57. Rd4 {[%clk 0:00:06.3]} 57... cxd5+ {[%clk
0:00:06.5]} 58. Rxd5 {[%clk 0:00:07.2]} 58... Rxd5 {[%clk 0:00:06.9]} 59. Kxd5
{[%clk 0:00:08.1]} 59... Re3 {[%clk 0:00:07.5]} 60. b5 {[%clk 0:00:08.4]} 60...
Rxg3 {[%clk 0:00:07.6]} 61. Rb4 {[%clk 0:00:08.6]} 61... Rd3+ {[%clk 0:00:08.2]}
62. Kc6 {[%clk 0:00:09]} 62... Rc3+ {[%clk 0:00:08.2]} 63. Kd7 {[%clk 0:00:09]}
63... Rd3+ {[%clk 0:00:08.5]} 64. Kc6 {[%clk 0:00:09.3]} 64... Rc3+ {[%clk
0:00:08.7]} 65. Kd5 {[%clk 0:00:09.8]} 65... Rc8 {[%clk 0:00:08.4]} 66. b6
{[%clk 0:00:08.8]} 66... g5 {[%clk 0:00:09.3]} 67. b7 {[%clk 0:00:08.3]} 67...
Rb8 {[%clk 0:00:09.3]} 68. Rb6+ {[%clk 0:00:08.7]} 68... Kg7 {[%clk 0:00:08.7]}
69. fxg5 {[%clk 0:00:09.3]} 69... f4 {[%clk 0:00:09]} 70. Ke4 {[%clk 0:00:09.8]}
70... Kf8 {[%clk 0:00:03.4]} 71. Kxf4 {[%clk 0:00:09.3]} 71... Ke7 {[%clk
0:00:04.3]} 72. Kf5 {[%clk 0:00:09.7]} 72... Kd7 {[%clk 0:00:04.8]} 73. Kf6
{[%clk 0:00:10]} 73... Kc7 {[%clk 0:00:04.6]} 74. Rb1 {[%clk 0:00:10.4]} 1-0